[Event "*** Titled Tuesday 3|2 Blitz"]
[Site "Chess.com"]
[Date "2015.12.01"]
[Round "2"]
[White "chessmaxusa"]
[Black "petrpalachev"]
[Result "0-1"]
[WhiteElo "2320"]
[BlackElo "2325"]
[TimeControl "180+2"]
[EndTime "11:22:14 PST"]
[Termination "petrpalachev won by resignation"]

1. d4 {[%clk 0:03:01.9]} 1... Nf6 {[%clk 0:03:00.8]} 2. Nf3 {[%clk 0:03:03.2]}
2... d5 {[%clk 0:03:01.7]} 3. Bf4 {[%clk 0:03:04.7]} 3... c5 {[%clk 0:03:02]} 4.
e3 {[%clk 0:03:05.8]} 4... Nc6 {[%clk 0:03:02.8]} 5. c3 {[%clk 0:03:07.2]} 5...
Qb6 {[%clk 0:03:04.2]} 6. Qb3 {[%clk 0:03:07.6]} 6... c4 {[%clk 0:02:59.4]} 7.
Qc2 {[%clk 0:03:09.1]} 7... Bf5 {[%clk 0:02:59.1]} 8. Qc1 {[%clk 0:03:10.7]}
8... h6 {[%clk 0:02:58.8]} 9. h3 {[%clk 0:03:12.2]} 9... e6 {[%clk 0:02:59.8]}
10. Nbd2 {[%clk 0:03:13.8]} 10... Qd8 {[%clk 0:02:56.9]} 11. Be2 {[%clk
0:03:14.1]} 11... Be7 {[%clk 0:02:56.5]} 12. O-O {[%clk 0:03:14.5]} 12... O-O
{[%clk 0:02:58.1]} 13. b3 {[%clk 0:03:15.4]} 13... b5 {[%clk 0:02:58.7]} 14. Qb2
{[%clk 0:03:15.2]} 14... Bd6 {[%clk 0:02:54.1]} 15. Ne5 {[%clk 0:03:07.1]} 15...
Qc7 {[%clk 0:02:41]} 16. Nxc6 {[%clk 0:03:07.6]} 16... Bxf4 {[%clk 0:02:34.7]}
17. exf4 {[%clk 0:03:03.8]} 17... Qxc6 {[%clk 0:02:34.7]} 18. a4 {[%clk
0:03:03.4]} 18... a6 {[%clk 0:02:31.9]} 19. Kh2 {[%clk 0:02:56]} 19... Rfc8
{[%clk 0:02:16.6]} 20. b4 {[%clk 0:02:56.6]} 20... Rcb8 {[%clk 0:02:07.4]} 21.
axb5 {[%clk 0:02:53.4]} 21... axb5 {[%clk 0:02:08.1]} 22. Ra5 {[%clk 0:02:46]}
22... Qc7 {[%clk 0:02:06.8]} 23. g3 {[%clk 0:01:38.4]} 23... Rxa5 {[%clk
0:02:07.1]} 24. bxa5 {[%clk 0:01:40.3]} 24... Qxa5 {[%clk 0:02:08.8]} 25. Ra1
{[%clk 0:01:40.6]} 25... Qb6 {[%clk 0:02:07.9]} 26. Qb4 {[%clk 0:01:33.9]} 26...
Qc7 {[%clk 0:01:57.7]} 27. Ra5 {[%clk 0:01:31.9]} 27... Bc2 {[%clk 0:01:42.1]}
28. Rxb5 {[%clk 0:01:28.2]} 28... Rxb5 {[%clk 0:01:40.4]} 29. Qxb5 {[%clk
0:01:29.3]} 29... Be4 {[%clk 0:01:26.9]} 30. Bd1 {[%clk 0:01:10.9]} 30... g5
{[%clk 0:01:15.9]} 31. fxg5 {[%clk 0:01:10.6]} 31... hxg5 {[%clk 0:01:17.8]} 32.
Qb2 {[%clk 0:01:04.2]} 32... Bg6 {[%clk 0:00:58.9]} 33. Nf3 {[%clk 0:00:56.1]}
33... Bh5 {[%clk 0:00:54.3]} 34. Kg2 {[%clk 0:00:54.5]} 34... Bxf3+ {[%clk
0:00:54.5]} 35. Bxf3 {[%clk 0:00:55.1]} 35... Kg7 {[%clk 0:00:43.8]} 36. Qd2
{[%clk 0:00:55.2]} 36... Nh7 {[%clk 0:00:44.6]} 37. Bd1 {[%clk 0:00:53.8]} 37...
Qe7 {[%clk 0:00:42.4]} 38. Bc2 {[%clk 0:00:53.7]} 38... Nf8 {[%clk 0:00:44]} 39.
Qe3 {[%clk 0:00:53.4]} 39... f6 {[%clk 0:00:31]} 40. f4 {[%clk 0:00:50.4]} 40...
gxf4 {[%clk 0:00:23.7]} 41. gxf4 {[%clk 0:00:48.9]} 41... f5 {[%clk 0:00:17.6]}
42. Qe5+ {[%clk 0:00:46]} 42... Qf6 {[%clk 0:00:18.3]} 43. Qxf6+ {[%clk
0:00:32.9]} 43... Kxf6 {[%clk 0:00:19.3]} 44. Kg3 {[%clk 0:00:34.1]} 44... Nd7
{[%clk 0:00:13.5]} 45. h4 {[%clk 0:00:34.2]} 45... Kg6 {[%clk 0:00:14.4]} 46.
Bd1 {[%clk 0:00:34.1]} 46... Nf6 {[%clk 0:00:15.8]} 47. Bf3 {[%clk 0:00:32.1]}
47... Ne4+ {[%clk 0:00:16.6]} 48. Bxe4 {[%clk 0:00:32.9]} 48... dxe4 {[%clk
0:00:14.8]} 49. Kg2 {[%clk 0:00:25.5]} 49... Kh6 {[%clk 0:00:14.6]} 50. Kh2
{[%clk 0:00:25.4]} 50... Kh5 {[%clk 0:00:15]} 51. Kh3 {[%clk 0:00:26.7]} 51...
e3 {[%clk 0:00:16.2]} 52. Kg3 {[%clk 0:00:28]} 52... e2 {[%clk 0:00:17.5]} 53.
Kf2 {[%clk 0:00:29.3]} 53... Kxh4 {[%clk 0:00:19.4]} 54. Kxe2 {[%clk 0:00:30.5]}
54... Kg3 {[%clk 0:00:20.1]} 55. Ke3 {[%clk 0:00:31.8]} 55... Kg4 {[%clk
0:00:21.7]} 56. d5 {[%clk 0:00:33.2]} 56... exd5 {[%clk 0:00:22.8]} 57. Kd4
{[%clk 0:00:34.8]} 57... Kxf4 {[%clk 0:00:24.4]} 58. Kxd5 {[%clk 0:00:36.1]}
58... Ke3 {[%clk 0:00:23.9]} 59. Kxc4 {[%clk 0:00:35.9]} 59... f4 {[%clk
0:00:25.8]} 60. Kd5 {[%clk 0:00:36.8]} 60... f3 {[%clk 0:00:27.7]} 61. c4 {[%clk
0:00:38.7]} 61... f2 {[%clk 0:00:29.6]} 62. c5 {[%clk 0:00:40.6]} 62... f1=Q
{[%clk 0:00:31.1]} 63. c6 {[%clk 0:00:42.5]} 63... Qf8 {[%clk 0:00:31.9]} 64. c7
{[%clk 0:00:42.6]} 64... Qc8 {[%clk 0:00:33.4]} 65. Kd6 {[%clk 0:00:43.9]} 65...
Ke4 {[%clk 0:00:34.4]} 0-1

[Event "*** Titled Tuesday 3|2 Blitz"]
[Site "Chess.com"]
[Date "2015.12.01"]
[Round "2"]
[White "JustKid"]
[Black "AdrianaNikolova"]
[Result "0-1"]
[WhiteElo "2116"]
[BlackElo "2249"]
[TimeControl "180+2"]
[EndTime "11:22:36 PST"]
[Termination "AdrianaNikolova won by resignation"]

1. d4 {[%clk 0:02:58]} 1... Nf6 {[%clk 0:02:59.3]} 2. Nf3 {[%clk 0:02:57.9]}
2... e6 {[%clk 0:03:01.2]} 3. g3 {[%clk 0:02:57.9]} 3... d5 {[%clk 0:03:00.9]}
4. c4 {[%clk 0:02:58.4]} 4... Be7 {[%clk 0:03:02.8]} 5. Bg2 {[%clk 0:02:59.3]}
5... O-O {[%clk 0:03:03.8]} 6. O-O {[%clk 0:03:01]} 6... dxc4 {[%clk 0:03:05.2]}
7. Ne5 {[%clk 0:03:00.7]} 7... Nc6 {[%clk 0:03:05.5]} 8. Bxc6 {[%clk 0:03:02.1]}
8... bxc6 {[%clk 0:03:07.4]} 9. Nxc6 {[%clk 0:03:03.8]} 9... Qe8 {[%clk
0:03:08.9]} 10. Nxe7+ {[%clk 0:03:05.7]} 10... Qxe7 {[%clk 0:03:10.8]} 11. Qa4
{[%clk 0:03:07.4]} 11... c5 {[%clk 0:03:09.2]} 12. Qa3 {[%clk 0:03:06.4]} 12...
Bb7 {[%clk 0:02:53.2]} 13. Qxc5 {[%clk 0:03:03]} 13... Qd7 {[%clk 0:02:52.8]}
14. Qxc4 {[%clk 0:02:51.5]} 14... Rac8 {[%clk 0:02:52.3]} 15. Qd3 {[%clk
0:02:46]} 15... Be4 {[%clk 0:02:50.3]} 16. Qe3 {[%clk 0:02:45.2]} 16... Bb7
{[%clk 0:02:38.2]} 17. Nc3 {[%clk 0:02:33.6]} 17... Nd5 {[%clk 0:02:30.2]} 18.
Nxd5 {[%clk 0:02:28.7]} 18... Qxd5 {[%clk 0:02:32.1]} 19. f3 {[%clk 0:02:27.9]}
19... Rfd8 {[%clk 0:02:31.8]} 20. Bd2 {[%clk 0:02:21.5]} 20... Qxd4 {[%clk
0:02:18.8]} 21. Qxd4 {[%clk 0:02:22.5]} 21... Rxd4 {[%clk 0:02:20.7]} 22. Bc3
{[%clk 0:02:24.2]} 22... Rd5 {[%clk 0:02:17.6]} 23. Kf2 {[%clk 0:02:22.6]} 23...
Rcd8 {[%clk 0:02:16.1]} 24. Rfc1 {[%clk 0:02:19.9]} 24... f6 {[%clk 0:02:15.5]}
25. Bb4 {[%clk 0:02:11.7]} 25... R8d7 {[%clk 0:02:13.8]} 26. Rc2 {[%clk
0:02:07.4]} 26... Kf7 {[%clk 0:02:14.4]} 27. Rac1 {[%clk 0:02:08.2]} 27... e5
{[%clk 0:02:10.8]} 28. a4 {[%clk 0:02:00.9]} 28... Rd4 {[%clk 0:02:09.4]} 29.
Rc7 {[%clk 0:01:58.9]} 29... Ke6 {[%clk 0:02:06.3]} 30. Rxd7 {[%clk 0:01:58.9]}
30... Rxd7 {[%clk 0:02:08.2]} 31. Bc3 {[%clk 0:01:31.6]} 31... Bc6 {[%clk
0:02:03.9]} 32. a5 {[%clk 0:01:32.5]} 32... Bb5 {[%clk 0:02:03.9]} 33. Be1
{[%clk 0:01:25.4]} 33... a6 {[%clk 0:02:01.4]} 34. Rc8 {[%clk 0:01:25.1]} 34...
Kf7 {[%clk 0:01:59.1]} 35. Bc3 {[%clk 0:01:24.5]} 35... Rd1 {[%clk 0:01:56.6]}
36. Rc7+ {[%clk 0:01:24]} 36... Kg6 {[%clk 0:01:57.9]} 37. h4 {[%clk 0:01:15.9]}
37... h5 {[%clk 0:01:57.7]} 38. e4 {[%clk 0:00:56.8]} 38... Rf1+ {[%clk
0:01:41.2]} 39. Kg2 {[%clk 0:00:58]} 39... Be2 {[%clk 0:01:38.6]} 40. Bb4 {[%clk
0:00:49.9]} 40... Rxf3 {[%clk 0:01:29.5]} 41. Bf8 {[%clk 0:00:42.7]} 41... f5
{[%clk 0:01:07.7]} 42. Rc2 {[%clk 0:00:43.7]} 42... Bd3 {[%clk 0:00:17.5]} 43.
Rc6+ {[%clk 0:00:24.1]} 43... Kh7 {[%clk 0:00:18.4]} 44. exf5 {[%clk 0:00:23.6]}
44... Be4 {[%clk 0:00:18.9]} 45. Rd6 {[%clk 0:00:09.2]} 45... Rxf5+ {[%clk
0:00:19.4]} 46. Kh2 {[%clk 0:00:10.8]} 46... Rxf8 {[%clk 0:00:20.4]} 47. Rxa6
{[%clk 0:00:12.1]} 47... Rf2+ {[%clk 0:00:21.2]} 48. Kg1 {[%clk 0:00:12.1]}
48... Rxb2 {[%clk 0:00:21.2]} 49. Re6 {[%clk 0:00:13.8]} 49... Rg2+ {[%clk
0:00:21.8]} 50. Kf1 {[%clk 0:00:14.9]} 50... Rxg3 {[%clk 0:00:23.7]} 51. Rxe5
{[%clk 0:00:16.4]} 51... Bd3+ {[%clk 0:00:25.1]} 52. Kf2 {[%clk 0:00:17.5]}
52... Rg4 {[%clk 0:00:26.6]} 53. Rxh5+ {[%clk 0:00:18.6]} 53... Kg6 {[%clk
0:00:27.5]} 54. Rd5 {[%clk 0:00:20.5]} 54... Bc4 {[%clk 0:00:27.5]} 55. h5+
{[%clk 0:00:21.8]} 55... Kh6 {[%clk 0:00:28.2]} 56. Rc5 {[%clk 0:00:23.7]} 56...
Bf7 {[%clk 0:00:26.3]} 57. a6 {[%clk 0:00:24.8]} 57... Ra4 {[%clk 0:00:26.2]}
58. Rc6+ {[%clk 0:00:25.7]} 58... Kxh5 {[%clk 0:00:27.2]} 59. Rc7 {[%clk
0:00:27.6]} 59... Kg6 {[%clk 0:00:27.7]} 60. a7 {[%clk 0:00:29.5]} 60... Kf6
{[%clk 0:00:26.7]} 61. Ke3 {[%clk 0:00:31.4]} 61... Be6 {[%clk 0:00:27.4]} 62.
Rb7 {[%clk 0:00:32.1]} 62... g5 {[%clk 0:00:28.4]} 63. Rc7 {[%clk 0:00:33.5]}
63... Ke5 {[%clk 0:00:28.8]} 64. Kf2 {[%clk 0:00:35.4]} 64... Kf4 {[%clk
0:00:29.2]} 65. Rg7 {[%clk 0:00:36.1]} 65... Bf5 {[%clk 0:00:30.2]} 66. Rf7
{[%clk 0:00:36.7]} 66... g4 {[%clk 0:00:31.4]} 67. Ke2 {[%clk 0:00:38.3]} 67...
Ra2+ {[%clk 0:00:31.7]} 68. Kd1 {[%clk 0:00:38.8]} 68... g3 {[%clk 0:00:33.1]}
69. Ke1 {[%clk 0:00:39.5]} 69... g2 {[%clk 0:00:29.8]} 70. Rg7 {[%clk
0:00:40.9]} 70... Kf3 {[%clk 0:00:30.6]} 71. Rg5 {[%clk 0:00:36.5]} 71... Be4
{[%clk 0:00:31]} 72. Rg7 {[%clk 0:00:32.4]} 72... Rxa7 {[%clk 0:00:31.5]} 0-1

[Event "*** Titled Tuesday 3|2 Blitz"]
[Site "Chess.com"]
[Date "2015.12.01"]
[Round "2"]
[White "MateusViageiro"]
[Black "KNVB"]
[Result "0-1"]
[WhiteElo "2295"]
[BlackElo "2335"]
[TimeControl "180+2"]
[EndTime "11:22:53 PST"]
[Termination "KNVB won on time"]

1. e4 {[%clk 0:02:58.4]} 1... e6 {[%clk 0:02:59.9]} 2. Qe2 {[%clk 0:02:57.8]}
2... Nc6 {[%clk 0:02:51.8]} 3. f4 {[%clk 0:02:57.3]} 3... Nd4 {[%clk 0:02:35.6]}
4. Qd1 {[%clk 0:02:57.8]} 4... d5 {[%clk 0:02:34.1]} 5. c3 {[%clk 0:02:51.9]}
5... Nc6 {[%clk 0:02:33.1]} 6. e5 {[%clk 0:02:50]} 6... d4 {[%clk 0:02:00.6]} 7.
Bb5 {[%clk 0:02:47.3]} 7... Qd5 {[%clk 0:01:55.9]} 8. Bxc6+ {[%clk 0:02:42.9]}
8... Qxc6 {[%clk 0:01:56.9]} 9. Nf3 {[%clk 0:02:43.2]} 9... d3 {[%clk
0:01:42.2]} 10. O-O {[%clk 0:02:40]} 10... b6 {[%clk 0:01:43.3]} 11. Kh1 {[%clk
0:02:35.5]} 11... Bb7 {[%clk 0:01:39.7]} 12. a4 {[%clk 0:02:31.7]} 12... Nh6
{[%clk 0:01:34.6]} 13. a5 {[%clk 0:02:26.3]} 13... b5 {[%clk 0:01:18.8]} 14. Na3
{[%clk 0:02:15.8]} 14... Ng4 {[%clk 0:01:15.9]} 15. h3 {[%clk 0:02:12.8]} 15...
h5 {[%clk 0:01:16.7]} 16. Qb3 {[%clk 0:02:08]} 16... a6 {[%clk 0:01:12.9]} 17.
c4 {[%clk 0:02:08.4]} 17... b4 {[%clk 0:01:10.9]} 18. Nb1 {[%clk 0:02:08.8]}
18... Rd8 {[%clk 0:00:44.5]} 19. Qa4 {[%clk 0:01:58.1]} 19... Bc5 {[%clk
0:00:40]} 20. Qxc6+ {[%clk 0:01:38.9]} 20... Bxc6 {[%clk 0:00:41.9]} 21. b3
{[%clk 0:01:22]} 21... Ke7 {[%clk 0:00:16.7]} 22. Bb2 {[%clk 0:01:22.6]} 22...
f6 {[%clk 0:00:16.9]} 23. exf6+ {[%clk 0:01:17.3]} 23... gxf6 {[%clk 0:00:18]}
24. Nh4 {[%clk 0:01:10.8]} 24... Rdg8 {[%clk 0:00:14.5]} 25. f5 {[%clk
0:01:05.3]} 25... e5 {[%clk 0:00:10.2]} 26. Ng6+ {[%clk 0:01:03.1]} 26... Rxg6
{[%clk 0:00:10.6]} 27. fxg6 {[%clk 0:01:03.8]} 27... Nf2+ {[%clk 0:00:10]} 28.
Kh2 {[%clk 0:01:01.2]} 28... h4 {[%clk 0:00:07.2]} 29. Nc3 {[%clk 0:00:48.5]}
29... bxc3 {[%clk 0:00:08.2]} 30. Bxc3 {[%clk 0:00:49.1]} 30... Ne4 {[%clk
0:00:08.3]} 31. b4 {[%clk 0:00:48.2]} 31... Nxc3 {[%clk 0:00:08.3]} 32. dxc3
{[%clk 0:00:46.2]} 32... Be3 {[%clk 0:00:09.2]} 33. Rab1 {[%clk 0:00:45.8]}
33... d2 {[%clk 0:00:08.2]} 34. b5 {[%clk 0:00:45.9]} 34... Be4 {[%clk
0:00:09.9]} 35. Rb2 {[%clk 0:00:44]} 35... Rg8 {[%clk 0:00:06.7]} 36. Rd1 {[%clk
0:00:36.8]} 36... Rxg6 {[%clk 0:00:05.5]} 37. Rdxd2 {[%clk 0:00:37.8]} 37...
Bxd2 {[%clk 0:00:07.4]} 38. Rxd2 {[%clk 0:00:37.9]} 38... Rg8 {[%clk 0:00:08.9]}
39. Rb2 {[%clk 0:00:22.4]} 39... Bd3 {[%clk 0:00:07.2]} 40. bxa6 {[%clk
0:00:19.9]} 40... Ra8 {[%clk 0:00:08.3]} 41. Rb7 {[%clk 0:00:19.7]} 41... Kd7
{[%clk 0:00:09]} 42. a7 {[%clk 0:00:16.7]} 42... Bxc4 {[%clk 0:00:09.9]} 43. Rb4
{[%clk 0:00:15.7]} 43... Bd5 {[%clk 0:00:09.9]} 44. Rxh4 {[%clk 0:00:16.2]}
44... Rxa7 {[%clk 0:00:11.2]} 45. Ra4 {[%clk 0:00:16.9]} 45... f5 {[%clk
0:00:09.6]} 46. g4 {[%clk 0:00:16.6]} 46... f4 {[%clk 0:00:10.4]} 47. g5 {[%clk
0:00:07.1]} 47... Ke6 {[%clk 0:00:11.3]} 48. c4 {[%clk 0:00:04.8]} 48... Bc6
{[%clk 0:00:11.7]} 49. Ra3 {[%clk 0:00:05]} 49... Kf5 {[%clk 0:00:13]} 50. h4
{[%clk 0:00:06.2]} 50... Kg4 {[%clk 0:00:13.3]} 51. g6 {[%clk 0:00:05.8]} 51...
Ra8 {[%clk 0:00:08.9]} 52. a6 {[%clk 0:00:06.1]} 52... e4 {[%clk 0:00:08]} 53.
a7 {[%clk 0:00:06.9]} 53... e3 {[%clk 0:00:09.3]} 54. Ra6 {[%clk 0:00:06.9]}
54... e2 {[%clk 0:00:09.9]} 55. Ra1 {[%clk 0:00:06.4]} 55... f3 {[%clk
0:00:10.4]} 56. Rg1+ {[%clk 0:00:07.3]} 56... Kf4 {[%clk 0:00:11.3]} 57. g7
{[%clk 0:00:06.8]} 57... f2 {[%clk 0:00:11.5]} 58. g8=Q {[%clk 0:00:07.4]} 58...
Rxg8 {[%clk 0:00:12]} 59. Rxg8 {[%clk 0:00:08.1]} 59... f1=Q {[%clk 0:00:13.5]}
60. Rf8+ {[%clk 0:00:08.8]} 60... Ke5 {[%clk 0:00:14.5]} 61. Re8+ {[%clk
0:00:03]} 61... Kd6 {[%clk 0:00:15.7]} 0-1

[Event "*** Titled Tuesday 3|2 Blitz"]
[Site "Chess.com"]
[Date "2015.12.01"]
[Round "2"]
[White "Blitzstream"]
[Black "Goala"]
[Result "0-1"]
[WhiteElo "2401"]
[BlackElo "2253"]
[TimeControl "180+2"]
[EndTime "11:22:57 PST"]
[Termination "Goala won by resignation"]

1. d4 {[%clk 0:02:58.1]} 1... e6 {[%clk 0:02:59.8]} 2. e4 {[%clk 0:02:58.9]}
2... d5 {[%clk 0:03:00.3]} 3. Nd2 {[%clk 0:02:59.6]} 3... Nf6 {[%clk 0:02:59.2]}
4. e5 {[%clk 0:03:00.8]} 4... Nfd7 {[%clk 0:02:58.3]} 5. c3 {[%clk 0:03:02.7]}
5... c5 {[%clk 0:02:59.5]} 6. Bd3 {[%clk 0:03:03.4]} 6... Nc6 {[%clk 0:03:00.8]}
7. Ngf3 {[%clk 0:03:04]} 7... g6 {[%clk 0:02:59.8]} 8. h4 {[%clk 0:03:00.4]}
8... h6 {[%clk 0:02:59.8]} 9. O-O {[%clk 0:03:00.5]} 9... g5 {[%clk 0:02:37.7]}
10. h5 {[%clk 0:02:51.1]} 10... cxd4 {[%clk 0:02:16.3]} 11. cxd4 {[%clk
0:02:50.9]} 11... g4 {[%clk 0:02:17.5]} 12. Nh2 {[%clk 0:02:51.9]} 12... Nxd4
{[%clk 0:02:17.4]} 13. Nxg4 {[%clk 0:02:52.2]} 13... Qh4 {[%clk 0:02:08.7]} 14.
Nb3 {[%clk 0:02:27.9]} 14... Nc6 {[%clk 0:01:41.9]} 15. Bf4 {[%clk 0:01:34.3]}
15... Rg8 {[%clk 0:01:28.1]} 16. Be2 {[%clk 0:01:34.8]} 16... Rxg4 {[%clk
0:00:39.9]} 17. Bxg4 {[%clk 0:01:35.4]} 17... Ndxe5 {[%clk 0:00:41.4]} 18. Bxe5
{[%clk 0:01:06.3]} 18... Nxe5 {[%clk 0:00:41.8]} 19. Bh3 {[%clk 0:00:59.6]}
19... Bd6 {[%clk 0:00:31.7]} 20. f4 {[%clk 0:00:32.9]} 20... Nc4 {[%clk
0:00:30.1]} 21. Qe1 {[%clk 0:00:34.2]} 21... Qxh5 {[%clk 0:00:22.2]} 22. Qg3
{[%clk 0:00:31.6]} 22... Ke7 {[%clk 0:00:07.9]} 23. Rae1 {[%clk 0:00:28.6]}
23... Bd7 {[%clk 0:00:08.3]} 24. Nd4 {[%clk 0:00:29.8]} 24... Bc5 {[%clk
0:00:07.4]} 25. Qc3 {[%clk 0:00:30.9]} 25... Bb6 {[%clk 0:00:05.6]} 26. Kh2
{[%clk 0:00:32]} 26... Rg8 {[%clk 0:00:06.3]} 27. Nf5+ {[%clk 0:00:31.7]} 27...
Kd8 {[%clk 0:00:07.4]} 28. b3 {[%clk 0:00:25.2]} 28... exf5 {[%clk 0:00:04.5]}
29. bxc4 {[%clk 0:00:24.6]} 29... d4 {[%clk 0:00:05]} 30. Qb4 {[%clk 0:00:22.7]}
30... Bc6 {[%clk 0:00:05.8]} 31. Qe7+ {[%clk 0:00:22.6]} 31... Kc8 {[%clk
0:00:07.4]} 32. Re2 {[%clk 0:00:12.6]} 32... Kb8 {[%clk 0:00:08]} 33. Qe5+
{[%clk 0:00:11.6]} 33... Ka8 {[%clk 0:00:09]} 34. Qxf5 {[%clk 0:00:13.1]} 34...
Qh4 {[%clk 0:00:09.9]} 35. Rfe1 {[%clk 0:00:10.4]} 35... d3 {[%clk 0:00:10.2]}
36. Qxd3 {[%clk 0:00:11.3]} 36... a6 {[%clk 0:00:10.8]} 37. a3 {[%clk
0:00:12.2]} 37... Bc7 {[%clk 0:00:12]} 38. g3 {[%clk 0:00:11.3]} 38... Qf6
{[%clk 0:00:11.3]} 39. Bg2 {[%clk 0:00:11.7]} 39... Bxg2 {[%clk 0:00:11.3]} 40.
Kxg2 {[%clk 0:00:13.1]} 40... Bxf4 {[%clk 0:00:08.5]} 41. Re8+ {[%clk
0:00:11.2]} 41... Rxe8 {[%clk 0:00:07.9]} 42. Rxe8+ {[%clk 0:00:13.1]} 42... Bb8
{[%clk 0:00:09.4]} 43. Qd8 {[%clk 0:00:11.7]} 43... Qc6+ {[%clk 0:00:07.2]} 44.
Kh3 {[%clk 0:00:11.1]} 44... Qh1+ {[%clk 0:00:06.5]} 45. Kg4 {[%clk 0:00:12.1]}
45... h5+ {[%clk 0:00:05.5]} 46. Kf5 {[%clk 0:00:10.8]} 46... Qf3+ {[%clk
0:00:05.3]} 47. Kg5 {[%clk 0:00:11.8]} 47... Qxg3+ {[%clk 0:00:06.5]} 48. Kf6
{[%clk 0:00:13.2]} 48... Qg6+ {[%clk 0:00:07.5]} 49. Ke7 {[%clk 0:00:14.4]}
49... Qe6+ {[%clk 0:00:07.6]} 50. Kf8 {[%clk 0:00:16.1]} 50... Qh6+ {[%clk
0:00:08.5]} 51. Kxf7 {[%clk 0:00:17.6]} 51... Qf4+ {[%clk 0:00:09.6]} 52. Kg6
{[%clk 0:00:17.8]} 52... h4 {[%clk 0:00:11.5]} 53. Rh8 {[%clk 0:00:17.7]} 53...
Qg3+ {[%clk 0:00:11]} 54. Kf5 {[%clk 0:00:18.4]} 54... h3 {[%clk 0:00:12]} 55.
Qh4 {[%clk 0:00:15.2]} 55... Qe5+ {[%clk 0:00:12.5]} 56. Kg6 {[%clk 0:00:16.3]}
56... Qe6+ {[%clk 0:00:10.8]} 57. Qf6 {[%clk 0:00:15.5]} 57... Qe4+ {[%clk
0:00:11.2]} 58. Kf7 {[%clk 0:00:14.7]} 58... h2 {[%clk 0:00:11.1]} 59. Qd8
{[%clk 0:00:09.3]} 59... Qf4+ {[%clk 0:00:09.9]} 60. Kg6 {[%clk 0:00:10]} 60...
Qg3+ {[%clk 0:00:10.3]} 61. Kf5 {[%clk 0:00:10.5]} 61... h1=Q {[%clk 0:00:10.8]}
62. Rxh1 {[%clk 0:00:07.2]} 62... Qf3+ {[%clk 0:00:12]} 63. Ke6 {[%clk
0:00:08.3]} 63... Qxh1 {[%clk 0:00:13.9]} 64. Qd5 {[%clk 0:00:07.2]} 64... Qh3+
{[%clk 0:00:13.3]} 65. Ke7 {[%clk 0:00:08.2]} 65... Qxa3+ {[%clk 0:00:14.5]} 66.
Kd8 {[%clk 0:00:09.5]} 66... Qf8+ {[%clk 0:00:14.3]} 67. Kd7 {[%clk 0:00:11]}
67... Qg7+ {[%clk 0:00:15]} 68. Kd8 {[%clk 0:00:11.7]} 68... Qc7+ {[%clk
0:00:16.9]} 69. Ke8 {[%clk 0:00:13.2]} 69... Qc6+ {[%clk 0:00:18.1]} 70. Qxc6
{[%clk 0:00:14.5]} 70... bxc6 {[%clk 0:00:20]} 71. Kd7 {[%clk 0:00:16.4]} 71...
Kb7 {[%clk 0:00:21.3]} 72. Ke6 {[%clk 0:00:18.3]} 72... Kb6 {[%clk 0:00:22.5]}
0-1